[Event "Late-Titled-Tuesday-Blitz-May-14-2024"]
[Site "Chess.com"]
[Date "2024.05.14"]
[Round "9"]
[White "Leebit02"]
[Black "bubeliang"]
[Result "1-0"]
[WhiteElo "2614"]
[BlackElo "2795"]
[TimeControl "180+1"]
[EndTime "15:43:05 PDT"]
[Termination "Leebit02 won by resignation"]

1. d4 {[%clk 0:02:59.6]} 1... d5 {[%clk 0:02:59.6]} 2. c4 {[%clk 0:02:59.4]}
2... e6 {[%clk 0:02:59.5]} 3. Nf3 {[%clk 0:02:59.5]} 3... Nf6 {[%clk 0:02:59.5]}
4. g3 {[%clk 0:02:59.8]} 4... Bb4+ {[%clk 0:02:59.3]} 5. Nbd2 {[%clk 0:02:59.6]}
5... dxc4 {[%clk 0:02:58.9]} 6. Bg2 {[%clk 0:02:59.2]} 6... b5 {[%clk
0:02:57.8]} 7. O-O {[%clk 0:02:56.7]} 7... O-O {[%clk 0:02:57.3]} 8. a4 {[%clk
0:02:53.9]} 8... c6 {[%clk 0:02:57.2]} 9. Ne1 {[%clk 0:02:49.8]} 9... Nd5 {[%clk
0:02:52]} 10. Nc2 {[%clk 0:02:46.2]} 10... Bd6 {[%clk 0:02:51.9]} 11. e4 {[%clk
0:02:36.1]} 11... Nb6 {[%clk 0:02:46.3]} 12. axb5 {[%clk 0:02:24.4]} 12... cxb5
{[%clk 0:02:46.3]} 13. e5 {[%clk 0:02:24.9]} 13... Bc7 {[%clk 0:02:46.7]} 14.
Bxa8 {[%clk 0:02:19.7]} 14... Nxa8 {[%clk 0:02:47.6]} 15. Rxa7 {[%clk
0:02:20.1]} 15... Nb6 {[%clk 0:02:47.8]} 16. Ne4 {[%clk 0:02:11.6]} 16... Nc6
{[%clk 0:02:43.7]} 17. Ra1 {[%clk 0:02:06.2]} 17... Bb7 {[%clk 0:02:41.4]} 18.
Re1 {[%clk 0:02:02.6]} 18... Qd5 {[%clk 0:02:36.1]} 19. Qg4 {[%clk 0:01:59.2]}
19... Kh8 {[%clk 0:02:32.7]} 20. Bg5 {[%clk 0:01:47]} 20... Nd7 {[%clk 0:02:26]}
21. Nc3 {[%clk 0:01:20.8]} 21... Qg2+ {[%clk 0:01:51.8]} 22. Kxg2 {[%clk
0:01:20.9]} 22... Ncxe5+ {[%clk 0:01:51.5]} 23. Qe4 {[%clk 0:01:15.2]} 23...
Bxe4+ {[%clk 0:01:52]} 24. Rxe4 {[%clk 0:01:11.3]} 24... Nd3 {[%clk 0:01:52.4]}
25. Nxb5 {[%clk 0:01:07.6]} 25... Bb6 {[%clk 0:01:52]} 26. Ra2 {[%clk
0:00:55.1]} 26... h6 {[%clk 0:01:48.6]} 27. Be7 {[%clk 0:00:53.3]} 27... Re8
{[%clk 0:01:46.5]} 28. Bd6 {[%clk 0:00:52]} 28... Nf6 {[%clk 0:01:45.4]} 29. Re2
{[%clk 0:00:49.5]} 29... Nc1 {[%clk 0:01:45.5]} 30. Ra6 {[%clk 0:00:46.3]} 30...
Nxe2 {[%clk 0:01:42.3]} 31. Rxb6 {[%clk 0:00:46.8]} 31... Ne4 {[%clk 0:01:24.7]}
32. Ba3 {[%clk 0:00:44.3]} 32... Nf6 {[%clk 0:01:18.3]} 33. Nd6 {[%clk
0:00:43.9]} 33... Rf8 {[%clk 0:01:13.9]} 34. Nxc4 {[%clk 0:00:42.7]} 34... Ra8
{[%clk 0:01:12.9]} 35. Ne5 {[%clk 0:00:39.4]} 35... Nd5 {[%clk 0:01:07.9]} 36.
Rb7 {[%clk 0:00:37.6]} 36... f6 {[%clk 0:01:06.3]} 37. Nc6 {[%clk 0:00:35.3]}
37... Rc8 {[%clk 0:01:01.1]} 38. Rb8 {[%clk 0:00:35.7]} 38... Rxb8 {[%clk
0:01:00.6]} 39. Nxb8 {[%clk 0:00:36.4]} 39... Kg8 {[%clk 0:01:00]} 40. Na6
{[%clk 0:00:36.8]} 40... Nc1 {[%clk 0:00:59.8]} 41. Nc5 {[%clk 0:00:35.9]} 41...
Kf7 {[%clk 0:00:58.4]} 42. Kf1 {[%clk 0:00:32.9]} 42... e5 {[%clk 0:00:55.5]}
43. dxe5 {[%clk 0:00:31.7]} 43... fxe5 {[%clk 0:00:56.4]} 44. Ke1 {[%clk
0:00:31.6]} 44... Na2 {[%clk 0:00:56]} 45. Kd2 {[%clk 0:00:30.1]} 45... Kf6
{[%clk 0:00:55.4]} 46. Ne4+ {[%clk 0:00:28.2]} 46... Kf5 {[%clk 0:00:55.8]} 47.
f3 {[%clk 0:00:28]} 47... Nb6 {[%clk 0:00:54.1]} 48. Ne3+ {[%clk 0:00:25]} 48...
Ke6 {[%clk 0:00:51.9]} 49. Kc2 {[%clk 0:00:25.5]} 49... g5 {[%clk 0:00:49.4]}
50. Nc5+ {[%clk 0:00:23]} 50... Kf6 {[%clk 0:00:48.6]} 51. Nd3 {[%clk
0:00:23.3]} 51... Na4 {[%clk 0:00:45.6]} 52. Kb3 {[%clk 0:00:23.3]} 52... N2c3
{[%clk 0:00:43.6]} 53. bxc3 {[%clk 0:00:23.4]} 53... Nb6 {[%clk 0:00:44.5]} 54.
c4 {[%clk 0:00:23.5]} 1-0

[Event "Late-Titled-Tuesday-Blitz-May-14-2024"]
[Site "Chess.com"]
[Date "2024.05.14"]
[Round "9"]
[White "bazar-wokzal"]
[Black "Licancabur"]
[Result "0-1"]
[WhiteElo "2588"]
[BlackElo "2502"]
[TimeControl "180+1"]
[EndTime "15:43:05 PDT"]
[Termination "Licancabur won by resignation"]

1. g4 {[%clk 0:03:00.9]} 1... d5 {[%clk 0:02:58.1]} 2. Bg2 {[%clk 0:02:59.5]}
2... Bxg4 {[%clk 0:02:56.8]} 3. c4 {[%clk 0:02:59]} 3... c6 {[%clk 0:02:42.5]}
4. Qb3 {[%clk 0:02:58.5]} 4... Qb6 {[%clk 0:02:16.8]} 5. cxd5 {[%clk 0:02:58.1]}
5... Nf6 {[%clk 0:02:13.9]} 6. Nc3 {[%clk 0:02:57.2]} 6... cxd5 {[%clk
0:02:06.4]} 7. Nxd5 {[%clk 0:02:54]} 7... Nxd5 {[%clk 0:01:48.8]} 8. Bxd5 {[%clk
0:02:54]} 8... Qxb3 {[%clk 0:01:41.8]} 9. axb3 {[%clk 0:02:53.4]} 9... Nc6
{[%clk 0:01:40.1]} 10. Bxc6+ {[%clk 0:02:53.4]} 10... bxc6 {[%clk 0:01:39.5]}
11. d3 {[%clk 0:02:53.8]} 11... e5 {[%clk 0:01:32.8]} 12. Be3 {[%clk 0:02:52.1]}
12... a5 {[%clk 0:01:25.8]} 13. Bd2 {[%clk 0:02:36.1]} 13... Bc5 {[%clk
0:01:15.5]} 14. Rxa5 {[%clk 0:02:26.1]} 14... Rxa5 {[%clk 0:01:08.2]} 15. Bxa5
{[%clk 0:02:26.8]} 15... Kd7 {[%clk 0:01:06.2]} 16. b4 {[%clk 0:02:21.9]} 16...
Bd4 {[%clk 0:00:54.7]} 17. Nf3 {[%clk 0:02:08]} 17... Bxf3 {[%clk 0:00:52.9]}
18. exf3 {[%clk 0:02:07.9]} 18... Rb8 {[%clk 0:00:45.4]} 19. Kd2 {[%clk
0:01:53.5]} 19... Bxb2 {[%clk 0:00:39.2]} 20. Rg1 {[%clk 0:01:44.9]} 20... g6
{[%clk 0:00:38]} 21. h4 {[%clk 0:01:45.2]} 21... h5 {[%clk 0:00:36.7]} 22. Rb1
{[%clk 0:01:30.5]} 22... Bd4 {[%clk 0:00:36.6]} 23. Ke2 {[%clk 0:01:27.7]} 23...
Rb5 {[%clk 0:00:34.2]} 24. Rc1 {[%clk 0:01:07.1]} 24... Ba7 {[%clk 0:00:28.8]}
25. Rc4 {[%clk 0:01:03.2]} 25... Rd5 {[%clk 0:00:20.5]} 26. f4 {[%clk
0:01:00.6]} 26... exf4 {[%clk 0:00:17.3]} 27. Rxf4 {[%clk 0:01:00.6]} 27... f5
{[%clk 0:00:17.5]} 28. Rc4 {[%clk 0:00:55.3]} 28... Rd4 {[%clk 0:00:17]} 29. Kf3
{[%clk 0:00:42.7]} 29... Rg4 {[%clk 0:00:13.6]} 30. Rf4 {[%clk 0:00:37]} 30...
Rxf4+ {[%clk 0:00:12.1]} 31. Kxf4 {[%clk 0:00:37.1]} 31... Bxf2 {[%clk
0:00:11.1]} 32. Kg5 {[%clk 0:00:37.5]} 32... Bg3 {[%clk 0:00:10.7]} 33. Kxg6
{[%clk 0:00:35.5]} 33... f4 {[%clk 0:00:10.7]} 34. Kxh5 {[%clk 0:00:32]} 34...
f3 {[%clk 0:00:10.6]} 35. Bb6 {[%clk 0:00:31.8]} 35... f2 {[%clk 0:00:09.4]} 36.
Bxf2 {[%clk 0:00:31.7]} 36... Bxf2 {[%clk 0:00:09.6]} 37. Kg6 {[%clk 0:00:31.7]}
37... Bxh4 {[%clk 0:00:09]} 38. Kf5 {[%clk 0:00:28]} 38... Kd6 {[%clk
0:00:08.4]} 39. Ke4 {[%clk 0:00:27.1]} 39... Be1 {[%clk 0:00:08.9]} 0-1

[Event "Late-Titled-Tuesday-Blitz-May-14-2024"]
[Site "Chess.com"]
[Date "2024.05.14"]
[Round "9"]
[White "HajiyevKanan"]
[Black "BestestBP"]
[Result "1-0"]
[WhiteElo "2439"]
[BlackElo "2201"]
[TimeControl "180+1"]
[EndTime "15:43:08 PDT"]
[Termination "HajiyevKanan won by resignation"]

1. d4 {[%clk 0:02:58.9]} 1... Nf6 {[%clk 0:02:59.9]} 2. Nf3 {[%clk 0:02:57.7]}
2... d6 {[%clk 0:03:00.1]} 3. c4 {[%clk 0:02:58.4]} 3... g6 {[%clk 0:03:00.4]}
4. g3 {[%clk 0:02:59.1]} 4... Bg7 {[%clk 0:03:00.5]} 5. Bg2 {[%clk 0:03:00]}
5... O-O {[%clk 0:03:01.1]} 6. O-O {[%clk 0:03:00.9]} 6... Nbd7 {[%clk
0:03:01.6]} 7. b3 {[%clk 0:03:01.8]} 7... e5 {[%clk 0:03:02.1]} 8. dxe5 {[%clk
0:03:02.2]} 8... Nxe5 {[%clk 0:03:00.7]} 9. Bb2 {[%clk 0:03:02.6]} 9... Nxf3+
{[%clk 0:02:59.8]} 10. exf3 {[%clk 0:03:03]} 10... c6 {[%clk 0:02:56.8]} 11. Qd2
{[%clk 0:03:02.3]} 11... d5 {[%clk 0:02:51.8]} 12. Rd1 {[%clk 0:03:02.1]} 12...
Be6 {[%clk 0:02:51.3]} 13. Na3 {[%clk 0:02:50.4]} 13... dxc4 {[%clk 0:02:44.2]}
14. Nxc4 {[%clk 0:02:51.3]} 14... Nd5 {[%clk 0:02:40.8]} 15. Bxg7 {[%clk
0:02:50.6]} 15... Kxg7 {[%clk 0:02:41.5]} 16. f4 {[%clk 0:02:47.3]} 16... Qf6
{[%clk 0:02:38.3]} 17. Qd4 {[%clk 0:02:37.9]} 17... Rfd8 {[%clk 0:02:17.6]} 18.
Qxf6+ {[%clk 0:02:37.6]} 18... Nxf6 {[%clk 0:02:16.9]} 19. Ne5 {[%clk
0:02:35.7]} 19... Ng4 {[%clk 0:02:07.3]} 20. Bf3 {[%clk 0:02:26.1]} 20... Nf6
{[%clk 0:02:01.6]} 21. Kg2 {[%clk 0:02:21]} 21... Nd5 {[%clk 0:02:00]} 22. Rac1
{[%clk 0:02:16.4]} 22... Nb4 {[%clk 0:01:52]} 23. a3 {[%clk 0:02:15.8]} 23...
Na2 {[%clk 0:01:42.9]} 24. Ra1 {[%clk 0:01:58.4]} 24... Bxb3 {[%clk 0:01:22.5]}
25. Rxd8 {[%clk 0:01:56]} 25... Rxd8 {[%clk 0:01:23.4]} 26. Rb1 {[%clk
0:01:56.4]} 26... Be6 {[%clk 0:01:23.6]} 27. Rxb7 {[%clk 0:01:56]} 27... c5
{[%clk 0:00:57.9]} 28. Rc7 {[%clk 0:01:53.5]} 28... c4 {[%clk 0:00:36.7]} 29.
Nxc4 {[%clk 0:01:52.9]} 29... Rd3 {[%clk 0:00:36.7]} 30. Na5 {[%clk 0:01:20.4]}
30... Rxa3 {[%clk 0:00:27.1]} 31. Rxa7 {[%clk 0:01:20.1]} 31... Nb4 {[%clk
0:00:17.3]} 32. Nc6 {[%clk 0:01:16.4]} 32... Rxf3 {[%clk 0:00:10.5]} 33. Nxb4
{[%clk 0:01:16.4]} 33... Rc3 {[%clk 0:00:08.6]} 34. Ra5 {[%clk 0:00:46.7]} 34...
h5 {[%clk 0:00:08]} 35. Nd5 {[%clk 0:00:43.4]} 35... Rd3 {[%clk 0:00:07.8]} 36.
Ne3 {[%clk 0:00:42.7]} 36... Rd4 {[%clk 0:00:06.4]} 37. f5 {[%clk 0:00:41.2]}
37... Bb3 {[%clk 0:00:04.4]} 38. h4 {[%clk 0:00:36.8]} 38... Rd7 {[%clk
0:00:02.5]} 39. Rb5 {[%clk 0:00:33.9]} 39... Ba4 {[%clk 0:00:02.2]} 40. Rb6
{[%clk 0:00:33.5]} 40... gxf5 {[%clk 0:00:01.8]} 41. Nxf5+ {[%clk 0:00:33.8]}
41... Kf8 {[%clk 0:00:02.5]} 42. Rb8+ {[%clk 0:00:33.5]} 42... Rd8 {[%clk
0:00:02.1]} 43. Rxd8+ {[%clk 0:00:33.7]} 43... Be8 {[%clk 0:00:03]} 44. Nd6
{[%clk 0:00:33.3]} 44... Ke7 {[%clk 0:00:03.9]} 45. Rxe8+ {[%clk 0:00:33.5]}
45... Kd7 {[%clk 0:00:04.2]} 1-0

[Event "Late-Titled-Tuesday-Blitz-May-14-2024"]
[Site "Chess.com"]
[Date "2024.05.14"]
[Round "9"]
[White "Orest_Vovk"]
[Black "SHIVACalypso"]
[Result "0-1"]
[WhiteElo "2669"]
[BlackElo "2563"]
[TimeControl "180+1"]
[EndTime "15:43:12 PDT"]
[Termination "SHIVACalypso won by resignation"]

1. h4 {[%clk 0:02:56]} 1... h5 {[%clk 0:02:58.6]} 2. Nf3 {[%clk 0:02:55.6]} 2...
c5 {[%clk 0:02:55.3]} 3. Nc3 {[%clk 0:02:54.7]} 3... Nc6 {[%clk 0:02:54.8]} 4.
Ng5 {[%clk 0:02:51.9]} 4... d5 {[%clk 0:02:48.4]} 5. e4 {[%clk 0:02:51.4]} 5...
d4 {[%clk 0:02:47.8]} 6. Ne2 {[%clk 0:02:51]} 6... Nh6 {[%clk 0:02:42.6]} 7. Ng3
{[%clk 0:02:50.3]} 7... Qc7 {[%clk 0:02:41.4]} 8. Nxh5 {[%clk 0:02:29.6]} 8...
Ng4 {[%clk 0:02:24.5]} 9. Bc4 {[%clk 0:02:06.1]} 9... Nce5 {[%clk 0:02:19.8]}
10. Bb5+ {[%clk 0:02:03.9]} 10... Bd7 {[%clk 0:02:13.5]} 11. Bxd7+ {[%clk
0:02:01.7]} 11... Qxd7 {[%clk 0:02:14.4]} 12. f4 {[%clk 0:01:25.7]} 12... Rxh5
{[%clk 0:01:38.2]} 13. fxe5 {[%clk 0:01:25.1]} 13... Rxg5 {[%clk 0:01:21.9]} 14.
hxg5 {[%clk 0:01:21.5]} 14... Nxe5 {[%clk 0:01:22.8]} 15. d3 {[%clk 0:01:18.7]}
15... c4 {[%clk 0:01:18]} 16. Bf4 {[%clk 0:01:15.3]} 16... Nc6 {[%clk
0:01:14.6]} 17. g6 {[%clk 0:01:07.5]} 17... e5 {[%clk 0:01:14]} 18. gxf7+ {[%clk
0:01:04]} 18... Qxf7 {[%clk 0:01:14.9]} 19. Bg5 {[%clk 0:00:54.2]} 19... Bb4+
{[%clk 0:01:02.6]} 20. Bd2 {[%clk 0:00:54.1]} 20... c3 {[%clk 0:01:02.8]} 21.
bxc3 {[%clk 0:00:53.3]} 21... dxc3 {[%clk 0:01:03.7]} 22. Be3 {[%clk 0:00:44.8]}
22... O-O-O {[%clk 0:01:03.6]} 23. Qf3 {[%clk 0:00:41.7]} 23... Qe7 {[%clk
0:00:53.1]} 24. Qf5+ {[%clk 0:00:30.1]} 24... Rd7 {[%clk 0:00:52.6]} 25. Rh8+
{[%clk 0:00:27.5]} 25... Kc7 {[%clk 0:00:52.1]} 26. Rb1 {[%clk 0:00:11.7]} 26...
Bc5 {[%clk 0:00:51.2]} 27. Bxc5 {[%clk 0:00:09.7]} 27... Qxc5 {[%clk 0:00:51.7]}
28. Qf2 {[%clk 0:00:06.3]} 28... Nd4 {[%clk 0:00:48.1]} 29. Re8 {[%clk 0:00:04]}
29... Nxc2+ {[%clk 0:00:42.5]} 30. Kf1 {[%clk 0:00:01.3]} 30... Nd4 {[%clk
0:00:13.6]} 31. Rc1 {[%clk 0:00:01.6]} 31... c2 {[%clk 0:00:13.3]} 32. Qd2
{[%clk 0:00:01.7]} 32... Rf7+ {[%clk 0:00:11.6]} 33. Kg1 {[%clk 0:00:02.2]}
33... Nf3+ {[%clk 0:00:11.5]} 34. Kh1 {[%clk 0:00:02.2]} 34... Nxd2 {[%clk
0:00:11.6]} 35. Rxc2 {[%clk 0:00:03]} 35... Qxc2 {[%clk 0:00:11.4]} 0-1

[Event "Late-Titled-Tuesday-Blitz-May-14-2024"]
[Site "Chess.com"]
[Date "2024.05.14"]
[Round "9"]
[White "WALDOCHESS"]
[Black "Mbneu"]
[Result "0-1"]
[WhiteElo "2052"]
[BlackElo "2282"]
[TimeControl "180+1"]
[EndTime "15:43:12 PDT"]
[Termination "Mbneu won by resignation"]

1. c4 {[%clk 0:03:00.9]} 1... Nf6 {[%clk 0:02:58.8]} 2. Nc3 {[%clk 0:03:00]}
2... e6 {[%clk 0:02:58.7]} 3. e4 {[%clk 0:02:59.4]} 3... d5 {[%clk 0:02:58.7]}
4. e5 {[%clk 0:02:59.5]} 4... Ne4 {[%clk 0:02:57.3]} 5. Nf3 {[%clk 0:02:57.7]}
5... c5 {[%clk 0:02:55.2]} 6. d4 {[%clk 0:02:52.3]} 6... Nc6 {[%clk 0:02:50.9]}
7. Be2 {[%clk 0:02:41.3]} 7... cxd4 {[%clk 0:02:46.4]} 8. Nxd4 {[%clk
0:02:38.3]} 8... Bc5 {[%clk 0:02:41.2]} 9. Nxc6 {[%clk 0:02:26.2]} 9... bxc6
{[%clk 0:01:40.7]} 10. Nxe4 {[%clk 0:02:23.5]} 10... dxe4 {[%clk 0:01:40.7]} 11.
Qxd8+ {[%clk 0:02:21.2]} 11... Kxd8 {[%clk 0:01:41.1]} 12. O-O {[%clk
0:02:21.4]} 12... Kc7 {[%clk 0:01:30.8]} 13. a3 {[%clk 0:02:19.7]} 13... a5
{[%clk 0:01:29.1]} 14. Rb1 {[%clk 0:02:17.7]} 14... a4 {[%clk 0:01:28]} 15. Bf4
{[%clk 0:02:01.7]} 15... Bd4 {[%clk 0:01:26.5]} 16. b4 {[%clk 0:01:58.2]} 16...
axb3 {[%clk 0:01:25]} 17. Rxb3 {[%clk 0:01:58.4]} 17... c5 {[%clk 0:01:17.5]}
18. Be3 {[%clk 0:01:51.6]} 18... Rb8 {[%clk 0:01:06.7]} 19. Rfb1 {[%clk
0:01:45.5]} 19... Rxb3 {[%clk 0:01:05.5]} 20. Rxb3 {[%clk 0:01:45.1]} 20... Ba6
{[%clk 0:01:01.8]} 21. g4 {[%clk 0:01:37.1]} 21... Rb8 {[%clk 0:00:59.6]} 22.
Rxb8 {[%clk 0:01:35.6]} 22... Kxb8 {[%clk 0:01:00.5]} 23. Kg2 {[%clk 0:01:35.5]}
23... Bxe3 {[%clk 0:00:51.3]} 24. fxe3 {[%clk 0:01:34.9]} 24... Kc7 {[%clk
0:00:51.9]} 25. g5 {[%clk 0:01:34.5]} 25... Kb6 {[%clk 0:00:42.3]} 26. Kg3
{[%clk 0:01:30.9]} 26... Ka5 {[%clk 0:00:39]} 27. Kf4 {[%clk 0:01:28.6]} 27...
Ka4 {[%clk 0:00:37.4]} 28. Kxe4 {[%clk 0:01:27.5]} 28... Kxa3 {[%clk 0:00:35.3]}
29. Kd3 {[%clk 0:01:19.4]} 29... Kb4 {[%clk 0:00:31.7]} 30. Kd2 {[%clk
0:01:18.6]} 30... Bxc4 {[%clk 0:00:31.2]} 31. Bf3 {[%clk 0:01:18.3]} 31... Bd5
{[%clk 0:00:30.3]} 32. e4 {[%clk 0:01:17.6]} 32... Bb3 {[%clk 0:00:28.8]} 33. h4
{[%clk 0:01:17]} 33... c4 {[%clk 0:00:26.9]} 34. h5 {[%clk 0:01:14.8]} 34... c3+
{[%clk 0:00:26.3]} 35. Kc1 {[%clk 0:01:14.5]} 35... Kc4 {[%clk 0:00:25.1]} 36.
Bg4 {[%clk 0:01:06.4]} 36... Kd4 {[%clk 0:00:24.2]} 37. Bf5 {[%clk 0:01:02.5]}
37... g6 {[%clk 0:00:18.6]} 38. hxg6 {[%clk 0:00:57.9]} 38... hxg6 {[%clk
0:00:17.7]} 39. Bg4 {[%clk 0:00:54.9]} 39... Kxe4 {[%clk 0:00:17.8]} 40. Be2
{[%clk 0:00:52.6]} 40... Kxe5 {[%clk 0:00:18]} 41. Bb5 {[%clk 0:00:53.2]} 41...
Kf4 {[%clk 0:00:17.7]} 42. Be8 {[%clk 0:00:53.2]} 42... Kxg5 {[%clk 0:00:17.6]}
43. Bxf7 {[%clk 0:00:53.3]} 43... e5 {[%clk 0:00:18.2]} 44. Bxb3 {[%clk
0:00:53]} 44... Kf4 {[%clk 0:00:17.4]} 45. Kd1 {[%clk 0:00:52.3]} 45... e4
{[%clk 0:00:17.4]} 46. Ke2 {[%clk 0:00:52.4]} 46... e3 {[%clk 0:00:17.5]} 47.
Bd5 {[%clk 0:00:48.7]} 47... g5 {[%clk 0:00:17.8]} 48. Kd3 {[%clk 0:00:48.8]}
48... g4 {[%clk 0:00:14.8]} 49. Kxc3 {[%clk 0:00:48.4]} 49... Kg3 {[%clk
0:00:13.8]} 50. Kc2 {[%clk 0:00:42.9]} 50... Kf2 {[%clk 0:00:14]} 51. Bc4 {[%clk
0:00:41.9]} 51... e2 {[%clk 0:00:14.1]} 52. Bxe2 {[%clk 0:00:40.5]} 52... Kxe2
{[%clk 0:00:14.3]} 53. Kc3 {[%clk 0:00:40.5]} 53... g3 {[%clk 0:00:14.6]} 54.
Kd4 {[%clk 0:00:41.4]} 54... g2 {[%clk 0:00:15.1]} 0-1

[Event "Late-Titled-Tuesday-Blitz-May-14-2024"]
[Site "Chess.com"]
[Date "2024.05.14"]
[Round "9"]
[White "Mikayel99"]
[Black "oskariot"]
[Result "1-0"]
[WhiteElo "2650"]
[BlackElo "2786"]
[TimeControl "180+1"]
[EndTime "15:43:13 PDT"]
[Termination "Mikayel99 won on time"]

1. e4 {[%clk 0:03:00.9]} 1... c5 {[%clk 0:02:58.3]} 2. c3 {[%clk 0:03:00.4]}
2... d6 {[%clk 0:02:57.1]} 3. d4 {[%clk 0:03:00.2]} 3... Nf6 {[%clk 0:02:57.7]}
4. Bd3 {[%clk 0:02:59.9]} 4... g6 {[%clk 0:02:58.4]} 5. h3 {[%clk 0:02:59.6]}
5... Bg7 {[%clk 0:02:59]} 6. Nf3 {[%clk 0:03:00.1]} 6... O-O {[%clk 0:02:58.7]}
7. O-O {[%clk 0:03:00.6]} 7... Nfd7 {[%clk 0:02:58]} 8. a3 {[%clk 0:02:51.8]}
8... Nc6 {[%clk 0:02:58.1]} 9. Be3 {[%clk 0:02:51]} 9... cxd4 {[%clk 0:02:33.9]}
10. cxd4 {[%clk 0:02:51.9]} 10... e5 {[%clk 0:02:34]} 11. Bc4 {[%clk 0:02:44.4]}
11... Nb6 {[%clk 0:02:04.6]} 12. Ba2 {[%clk 0:02:39.4]} 12... d5 {[%clk
0:02:04]} 13. dxe5 {[%clk 0:02:11.8]} 13... dxe4 {[%clk 0:02:04]} 14. Qxd8
{[%clk 0:02:12.7]} 14... Rxd8 {[%clk 0:01:56.8]} 15. Ng5 {[%clk 0:02:10.5]}
15... Nxe5 {[%clk 0:01:56.9]} 16. Nc3 {[%clk 0:01:53.7]} 16... Nbc4 {[%clk
0:01:48.8]} 17. Rad1 {[%clk 0:01:26]} 17... Rf8 {[%clk 0:01:30.1]} 18. Ngxe4
{[%clk 0:01:05.7]} 18... Nxe3 {[%clk 0:01:10.3]} 19. fxe3 {[%clk 0:01:04.4]}
19... b6 {[%clk 0:01:03.2]} 20. Nd6 {[%clk 0:00:56.6]} 20... Ba6 {[%clk
0:00:58.1]} 21. Rf2 {[%clk 0:00:54.5]} 21... Rad8 {[%clk 0:00:47.8]} 22. Nce4
{[%clk 0:00:40.4]} 22... Nc4 {[%clk 0:00:35.5]} 23. Rd5 {[%clk 0:00:12.5]} 23...
Nxe3 {[%clk 0:00:24.5]} 24. Rdd2 {[%clk 0:00:12]} 24... Bh8 {[%clk 0:00:02.8]}
25. Nxf7 {[%clk 0:00:08.9]} 25... Rxd2 {[%clk 0:00:02.5]} 26. Rxd2 {[%clk
0:00:09.2]} 26... Kg7 {[%clk 0:00:03]} 27. Neg5 {[%clk 0:00:05.9]} 27... Re8
{[%clk 0:00:01.2]} 28. Rd7 {[%clk 0:00:05.3]} 28... Kf6 {[%clk 0:00:01.2]} 29.
Nxh7+ {[%clk 0:00:05.4]} 29... Kf5 {[%clk 0:00:01.5]} 30. Nd6+ {[%clk
0:00:05.8]} 30... Ke5 {[%clk 0:00:00.4]} 31. Nxe8 {[%clk 0:00:06.3]} 31... Bf6
{[%clk 0:00:00.1]} 32. Nexf6 {[%clk 0:00:05.9]} 32... Bc4 {[%clk 0:00:01]} 33.
Bxc4 {[%clk 0:00:05.7]} 1-0

[Event "Late-Titled-Tuesday-Blitz-May-14-2024"]
[Site "Chess.com"]
[Date "2024.05.14"]
[Round "9"]
[White "yobdc"]
[Black "Puzzlebot_1294"]
[Result "1-0"]
[WhiteElo "2515"]
[BlackElo "2621"]
[TimeControl "180+1"]
[EndTime "15:43:13 PDT"]
[Termination "yobdc won by resignation"]

1. e4 {[%clk 0:02:56.2]} 1... e5 {[%clk 0:02:57.7]} 2. Nf3 {[%clk 0:02:56.1]}
2... Nc6 {[%clk 0:02:53.2]} 3. Bc4 {[%clk 0:02:56]} 3... Bc5 {[%clk 0:02:52.1]}
4. c3 {[%clk 0:02:56]} 4... Nf6 {[%clk 0:02:50.1]} 5. d4 {[%clk 0:02:56.2]} 5...
exd4 {[%clk 0:02:49.4]} 6. e5 {[%clk 0:02:57.1]} 6... d5 {[%clk 0:02:49.3]} 7.
Bb5 {[%clk 0:02:56.4]} 7... Ne4 {[%clk 0:02:49.8]} 8. cxd4 {[%clk 0:02:56.7]}
8... Bb6 {[%clk 0:02:50.5]} 9. Nc3 {[%clk 0:02:56.8]} 9... O-O {[%clk
0:02:50.9]} 10. Be3 {[%clk 0:02:57]} 10... Bg4 {[%clk 0:02:49.2]} 11. h3 {[%clk
0:02:45.7]} 11... Bh5 {[%clk 0:02:48.1]} 12. Qc2 {[%clk 0:02:27.4]} 12... Bg6
{[%clk 0:02:46.4]} 13. Qb3 {[%clk 0:02:25.3]} 13... Ne7 {[%clk 0:02:44.1]} 14.
O-O {[%clk 0:02:08.7]} 14... Nf5 {[%clk 0:02:42]} 15. Qxd5 {[%clk 0:01:51.5]}
15... Nxc3 {[%clk 0:02:10.6]} 16. Qxd8 {[%clk 0:01:49.6]} 16... Ne2+ {[%clk
0:02:11.5]} 17. Bxe2 {[%clk 0:01:49.2]} 17... Raxd8 {[%clk 0:02:12.4]} 18. Rfd1
{[%clk 0:01:46]} 18... c6 {[%clk 0:02:12.6]} 19. a4 {[%clk 0:01:40.2]} 19... a5
{[%clk 0:02:07]} 20. Ra3 {[%clk 0:01:39.7]} 20... Rd7 {[%clk 0:02:00.3]} 21. Rb3
{[%clk 0:01:28.7]} 21... Bd8 {[%clk 0:01:58.8]} 22. g4 {[%clk 0:01:25.4]} 22...
Ne7 {[%clk 0:01:54.8]} 23. Nh4 {[%clk 0:00:47.1]} 23... Nd5 {[%clk 0:01:46.4]}
24. Nxg6 {[%clk 0:00:46]} 24... hxg6 {[%clk 0:01:47.3]} 25. Bf3 {[%clk
0:00:42.8]} 25... Nb4 {[%clk 0:01:44.4]} 26. Rc3 {[%clk 0:00:36.9]} 26... Re8
{[%clk 0:01:38.8]} 27. Kg2 {[%clk 0:00:36.4]} 27... Bb6 {[%clk 0:01:36.1]} 28.
Rc4 {[%clk 0:00:34.5]} 28... Red8 {[%clk 0:01:31.5]} 29. Rd2 {[%clk 0:00:34.7]}
29... Ba7 {[%clk 0:01:06.7]} 30. Be4 {[%clk 0:00:14.6]} 30... c5 {[%clk
0:01:03.4]} 31. Bg5 {[%clk 0:00:14.7]} 31... Rxd4 {[%clk 0:00:52.1]} 32. Rdxd4
{[%clk 0:00:14.5]} 32... Rxd4 {[%clk 0:00:50.6]} 33. Rxd4 {[%clk 0:00:14.6]}
33... cxd4 {[%clk 0:00:51.2]} 34. Bxb7 {[%clk 0:00:14.8]} 34... Nd3 {[%clk
0:00:47.9]} 35. Bd8 {[%clk 0:00:11.3]} 35... Nxb2 {[%clk 0:00:46.6]} 36. Bc6
{[%clk 0:00:10]} 36... Nc4 {[%clk 0:00:31.9]} 37. Bb5 {[%clk 0:00:09.7]} 37...
Nxe5 {[%clk 0:00:28.1]} 38. Bxa5 {[%clk 0:00:09.8]} 38... Kf8 {[%clk 0:00:24.4]}
39. Bb4+ {[%clk 0:00:09.8]} 39... Kg8 {[%clk 0:00:23.5]} 40. a5 {[%clk
0:00:10.2]} 40... d3 {[%clk 0:00:21.8]} 41. f4 {[%clk 0:00:09.7]} 41... d2
{[%clk 0:00:20.1]} 42. Bxd2 {[%clk 0:00:09.5]} 42... f6 {[%clk 0:00:18.7]} 43.
fxe5 {[%clk 0:00:09.5]} 43... fxe5 {[%clk 0:00:19.6]} 44. Kf3 {[%clk 0:00:09.7]}
44... Kf7 {[%clk 0:00:20.2]} 45. Be3 {[%clk 0:00:10.2]} 45... Ke6 {[%clk
0:00:21.1]} 46. Bxa7 {[%clk 0:00:10.1]} 1-0